{"text_format":"3","workbook":"xlsx","n_sheets":4,"sheets":["Súhrn","Aktíva","Záväzky","Kategórie"],"not_rendered":{"defined_names":10},"read":"whole","date_system":"1900"}

{"sheet":"Súhrn","index":0,"n_rows":12,"n_cols":4,"rows_kept":12}
[null,"Účtovná uzávierka"]
[null,null,{"$f":"\"FY-\"&YEAR(TODAY())-1","v":"FY-2016"},{"$f":"\"FY-\"&YEAR(TODAY())","v":"FY-2017"}]
[null,"Typ aktíva","Predchádzajúci rok","Aktuálny rok"]
[null,"Aktuálne aktíva",{"$f":"SUMIFS(Aktíva[Predchádzajúci rok],Aktíva[Typ aktíva],Tabuľa[[#This Row],[Typ aktíva]])+SUMIFS(Záväzky[Predchádzajúci rok],Záväzky[Typ záväzku],Tabuľa[[#This Row],[Typ aktíva]])","v":600},{"$f":"SUMIFS(Aktíva[Aktuálny rok],Aktíva[Typ aktíva],Tabuľa[[#This Row],[Typ aktíva]])+SUMIFS(Záväzky[Aktuálny rok],Záväzky[Typ záväzku],Tabuľa[[#This Row],[Typ aktíva]])","v":600}]
[null,"Dlhodobé aktíva",{"$f":"SUMIFS(Aktíva[Predchádzajúci rok],Aktíva[Typ aktíva],Tabuľa[[#This Row],[Typ aktíva]])+SUMIFS(Záväzky[Predchádzajúci rok],Záväzky[Typ záväzku],Tabuľa[[#This Row],[Typ aktíva]])","v":{"v":-100,"d":"-100 "}},{"$f":"SUMIFS(Aktíva[Aktuálny rok],Aktíva[Typ aktíva],Tabuľa[[#This Row],[Typ aktíva]])+SUMIFS(Záväzky[Aktuálny rok],Záväzky[Typ záväzku],Tabuľa[[#This Row],[Typ aktíva]])","v":{"v":-85,"d":"-85 "}}]
[null,"Iné aktíva",{"$f":"SUMIFS(Aktíva[Predchádzajúci rok],Aktíva[Typ aktíva],Tabuľa[[#This Row],[Typ aktíva]])+SUMIFS(Záväzky[Predchádzajúci rok],Záväzky[Typ záväzku],Tabuľa[[#This Row],[Typ aktíva]])","v":0},{"$f":"SUMIFS(Aktíva[Aktuálny rok],Aktíva[Typ aktíva],Tabuľa[[#This Row],[Typ aktíva]])+SUMIFS(Záväzky[Aktuálny rok],Záväzky[Typ záväzku],Tabuľa[[#This Row],[Typ aktíva]])","v":0}]
[null,"Aktuálne záväzky",{"$f":"SUMIFS(Aktíva[Predchádzajúci rok],Aktíva[Typ aktíva],Tabuľa[[#This Row],[Typ aktíva]])+SUMIFS(Záväzky[Predchádzajúci rok],Záväzky[Typ záväzku],Tabuľa[[#This Row],[Typ aktíva]])","v":500},{"$f":"SUMIFS(Aktíva[Aktuálny rok],Aktíva[Typ aktíva],Tabuľa[[#This Row],[Typ aktíva]])+SUMIFS(Záväzky[Aktuálny rok],Záväzky[Typ záväzku],Tabuľa[[#This Row],[Typ aktíva]])","v":350}]
[null,"Dlhodobé záväzky",{"$f":"SUMIFS(Aktíva[Predchádzajúci rok],Aktíva[Typ aktíva],Tabuľa[[#This Row],[Typ aktíva]])+SUMIFS(Záväzky[Predchádzajúci rok],Záväzky[Typ záväzku],Tabuľa[[#This Row],[Typ aktíva]])","v":0},{"$f":"SUMIFS(Aktíva[Aktuálny rok],Aktíva[Typ aktíva],Tabuľa[[#This Row],[Typ aktíva]])+SUMIFS(Záväzky[Aktuálny rok],Záväzky[Typ záväzku],Tabuľa[[#This Row],[Typ aktíva]])","v":0}]
[null,"Vlastník majetku",{"$f":"SUMIFS(Aktíva[Predchádzajúci rok],Aktíva[Typ aktíva],Tabuľa[[#This Row],[Typ aktíva]])+SUMIFS(Záväzky[Predchádzajúci rok],Záväzky[Typ záväzku],Tabuľa[[#This Row],[Typ aktíva]])","v":0},{"$f":"SUMIFS(Aktíva[Aktuálny rok],Aktíva[Typ aktíva],Tabuľa[[#This Row],[Typ aktíva]])+SUMIFS(Záväzky[Aktuálny rok],Záväzky[Typ záväzku],Tabuľa[[#This Row],[Typ aktíva]])","v":350}]
[null,"Celkové aktíva",{"$f":"Aktíva[[#Totals],[Predchádzajúci rok]]","v":500},{"$f":"Aktíva[[#Totals],[Aktuálny rok]]","v":515}]
[null,"Celkové záväzky a majetok akcionára",{"$f":"Záväzky[[#Totals],[Predchádzajúci rok]]","v":500},{"$f":"Záväzky[[#Totals],[Aktuálny rok]]","v":700}]
[null,"Zostatok",{"$f":"C10-C11","v":0},{"$f":"D10-D11","v":{"v":-185,"d":"-185 "}}]

{"sheet":"Aktíva","index":1,"n_rows":14,"n_cols":5,"rows_kept":14}
[null,"Aktíva"]
[{"$nulls":3},{"$f":"FR_ROK","v":"FY-2016"},{"$f":"FR_ROK_2","v":"FY-2017"}]
[null,"Typ aktíva","Popis","Predchádzajúci rok","Aktuálny rok"]
[null,"Aktuálne aktíva","Hotovosť",600,600]
[null,"Aktuálne aktíva","Investície"]
[null,"Aktuálne aktíva","Inventáre"]
[null,"Aktuálne aktíva","Pohľadávky"]
[null,"Aktuálne aktíva","Predplatené výdavky"]
[null,"Dlhodobé aktíva","Nehnuteľnosti a vybavenie"]
[null,"Dlhodobé aktíva","Vylepšenia na prenajatom majetku"]
[null,"Dlhodobé aktíva","Kapitál a iné investície"]
[null,"Dlhodobé aktíva","Znížené akumulované odpisy (záporná hodnota)",{"v":-100,"d":"-100 "},{"v":-85,"d":"-85 "}]
[null,"Iné aktíva","Charita"]
[null,"Celkové aktíva",null,{"$f":"SUBTOTAL(109,Aktíva[Predchádzajúci rok])","v":500},{"$f":"SUBTOTAL(109,Aktíva[Aktuálny rok])","v":515}]

{"sheet":"Záväzky","index":2,"n_rows":12,"n_cols":5,"rows_kept":12}
[null,"Záväzky"]
[{"$nulls":3},{"$f":"FR_ROK","v":"FY-2016"},{"$f":"FR_ROK_2","v":"FY-2017"}]
[null,"Typ záväzku","Popis","Predchádzajúci rok","Aktuálny rok"]
[null,"Aktuálne záväzky","Záväzky",null,350]
[null,"Aktuálne záväzky","Akumulované mzdy"]
[null,"Aktuálne záväzky","Akumulované kompenzácie",500]
[null,"Aktuálne záväzky","Splatné dane z príjmu"]
[null,"Aktuálne záväzky","Výnosy z podielu"]
[null,"Dlhodobé záväzky","Splatná hypotéka"]
[null,"Vlastník majetku","Investičný kapitál",null,350]
[null,"Vlastník majetku","Akumulované nerozdelené výnosy"]
[null,"Celkové záväzky a majetok akcionára",null,{"$f":"SUBTOTAL(109,Záväzky[Predchádzajúci rok])","v":500},{"$f":"SUBTOTAL(109,Záväzky[Aktuálny rok])","v":700}]

{"sheet":"Kategórie","index":3,"n_rows":9,"n_cols":2,"rows_kept":9}
[null,"Kategórie"]
[]
[null,"Kategórie"]
[null,"Aktuálne aktíva"]
[null,"Dlhodobé aktíva"]
[null,"Iné aktíva"]
[null,"Aktuálne záväzky"]
[null,"Dlhodobé záväzky"]
[null,"Vlastník majetku"]